bitfinex/quotes_SOLUSD_20250817
["timestamp","ask_amount","ask_price","bid_price","bid_amount"]
[1755429800707,39.71868098,193.65,193.64,0.72]
[1755429801719,39.71868098,193.65,193.63,10.0]
[1755429801909,36.24,193.65,193.63,10.0]
[1755429802405,36.24,193.65,193.63,10.72]
[1755429803141,8.04463802,193.64,193.62,0.03]
[1755429803308,43.52508021,193.63,193.62,0.03]
[1755429803511,44.22508021,193.63,193.62,0.03]
[1755429803923,44.22536773,193.63,193.62,0.03]
[1755429807052,40.35903359,193.63,193.62,0.03]
[1755429807255,44.22473117,193.63,193.62,0.03]
[1755429807554,44.22467062,193.63,193.62,0.03]
[1755429809151,8.04467062,193.63,193.62,0.03]
[1755429809447,43.52467062,193.63,193.62,0.03]
[1755429809637,40.04563703,193.63,193.62,10.75]
[1755429809842,43.52400144,193.63,193.62,10.75]
[1755429810236,43.52400144,193.63,193.62,10.03]
[1755429811331,43.52400144,193.63,193.62,10.75]
[1755429811740,40.04563703,193.63,193.62,10.75]
[1755429813636,3.86563703,193.63,193.62,10.75]
[1755429814433,3.86563703,193.63,193.62,10.03]
[1755429815337,4.56563703,193.63,193.62,10.03]
[1755429815537,4.56563703,193.63,193.62,0.03]
[1755429815737,8.04420448,193.63,193.62,0.03]
[1755429816155,4.17856745,193.63,193.62,0.03]
[1755429816353,8.04417994,193.63,193.62,0.03]
[1755429816560,8.04443312,193.63,193.62,0.03]
[1755429817764,8.04443312,193.63,193.62,10.03]
[1755429820441,7.34443312,193.63,193.62,10.03]
[1755429820641,7.34443312,193.63,193.62,0.03]
[1755429820866,7.34443312,193.63,193.62,10.03]
[1755429822248,40.04561249,193.63,193.62,10.75]
[1755429822839,40.04561249,193.63,193.62,10.03]
[1755429823043,40.74561249,193.63,193.62,0.03]
[1755429823239,44.22510682,193.63,193.62,10.03]
[1755429824185,43.52510682,193.63,193.62,10.03]
[1755429824855,43.52510682,193.63,193.62,0.03]
[1755429825048,44.18510682,193.63,193.62,0.03]
[1755429825379,44.18682162,193.63,193.62,0.03]
[1755429825761,44.1869066,193.63,193.62,0.03]
[1755429828288,44.18758203,193.63,193.62,0.03]
[1755429833384,7.34758203,193.63,193.62,0.03]
[1755429833574,43.52758203,193.63,193.62,0.03]
[1755429834180,39.65949433,193.63,193.62,0.03]
[1755429834504,43.52734031,193.63,193.62,0.03]
[1755429834872,43.52735131,193.63,193.62,0.03]
[1755429835071,44.18735131,193.63,193.62,0.03]
[1755429842590,48.53493713,193.63,193.62,0.03]
[1755429843080,48.53496944,193.63,193.62,0.03]
[1755429845288,12.35496944,193.63,193.62,0.03]
[1755429845484,7.34644366,193.63,193.62,0.75]
[1755429846006,43.52644366,193.63,193.62,10.75]
[1755429846191,7.34644366,193.63,193.62,10.75]
[1755429847485,3.86694933,193.63,193.62,10.75]
[1755429847691,7.34582514,193.63,193.62,10.75]
[1755429848804,7.34582514,193.63,193.62,0.03]
[1755429849103,7.3446363,193.63,193.62,0.03]
[1755429850904,7.3446363,193.63,193.62,0.75]
[1755429851122,7.3446363,193.63,193.62,0.03]
[1755429851887,3.47887581,193.63,193.62,0.03]
[1755429852082,7.34468008,193.63,193.62,0.03]
[1755429852595,7.34467071,193.63,193.62,0.03]
[1755429853407,8.00467071,193.63,193.62,0.03]
[1755429854317,7.34467071,193.63,193.62,0.03]
[1755429858603,7.34467071,193.63,193.62,0.7]
[1755429860916,7.34467071,193.63,193.62,0.03]
[1755429861118,7.34566816,193.63,193.62,0.03]
[1755429861612,43.52558266,193.63,193.62,0.7]
[1755429862605,43.52558266,193.63,193.62,0.03]
[1755429864216,43.52548586,193.63,193.62,0.03]
[1755429870119,39.65887581,193.63,193.62,0.03]
[1755429870319,43.52592862,193.63,193.62,0.03]
[1755429872709,44.20592862,193.63,193.62,0.03]
[1755429873508,44.20555202,193.63,193.62,0.03]
[1755429875039,43.52555202,193.63,193.62,0.03]
[1755429875833,43.52555202,193.63,193.62,10.03]
[1755429879425,43.52594348,193.63,193.62,10.03]
[1755429879924,39.65887581,193.63,193.62,10.03]
[1755429880127,43.52595736,193.63,193.62,10.03]
[1755429880333,44.20595736,193.63,193.62,10.03]
[1755429882421,44.20630218,193.63,193.62,10.03]
[1755429883717,43.52630218,193.63,193.62,10.03]
[1755429884123,43.52630218,193.63,193.62,10.7]
[1755429884324,43.52630218,193.63,193.62,10.03]
[1755429885244,39.65887581,193.63,193.62,10.03]
[1755429885437,43.52688076,193.63,193.62,10.03]
[1755429888449,43.52775054,193.63,193.62,10.03]
[1755429888936,43.52873873,193.63,193.62,10.03]
[1755429891215,43.53337175,193.63,193.62,10.03]
[1755429891549,7.35337175,193.63,193.62,90.22]
[1755429892014,0.06,193.64,193.63,10.0]
[1755429892219,3.93384375,193.64,193.63,90.19]
[1755429893451,0.06,193.64,193.63,90.19]
[1755429895853,0.06,193.64,193.63,126.35]
[1755429898155,0.06,193.64,193.63,152.35]
[1755429898525,0.06,193.64,193.63,126.35]
[1755429900247,0.06,193.64,193.63,125.68]
[1755429900447,0.73,193.64,193.63,10.0]
[1755429900953,0.73,193.64,193.63,36.0]
[1755429901458,0.06,193.64,193.63,36.0]
[1755429902760,0.73,193.64,193.63,36.0]
[1755429903843,0.73,193.64,193.63,115.52]
[1755429904659,0.73,193.64,193.63,79.52]
[1755429905032,8.07372608,193.64,193.63,79.52]
[1755429905244,8.07372608,193.64,193.62,0.03]
[1755429905445,8.01372608,193.63,193.62,0.03]
[1755429905636,3.47861922,193.63,193.62,0.03]
[1755429905954,8.01394615,193.63,193.62,0.03]
[1755429907847,12.36597098,193.63,193.62,0.03]
[1755429908445,8.01394615,193.63,193.62,0.03]
[1755429911848,8.01134145,193.63,193.62,0.03]
[1755429912054,44.17134145,193.63,193.62,0.03]
[1755429914775,40.30861922,193.63,193.62,0.03]
[1755429915072,44.16965978,193.63,193.62,0.03]
[1755429915254,40.30861922,193.63,193.62,0.03]
[1755429915455,44.16965978,193.63,193.62,0.03]
[1755429917551,48.52168461,193.63,193.62,0.03]
[1755429918355,44.16965978,193.63,193.62,0.03]
[1755429918748,48.52168461,193.63,193.62,0.03]
[1755429921158,74.52168461,193.63,193.62,0.03]
[1755429921372,70.16965978,193.63,193.62,0.03]
[1755429921674,70.16965978,193.63,193.61,0.03]
[1755429921862,11.6787731,193.62,193.61,0.03]
[1755429922067,12.3987731,193.62,193.61,0.03]
[1755429922665,48.5587731,193.62,193.61,0.03]
[1755429923050,44.21965978,193.62,193.61,0.03]
[1755429924050,44.21376315,193.62,193.61,0.03]
[1755429925881,44.21376315,193.62,193.6,0.03]
[1755429926053,8.05376315,193.61,193.6,0.03]
[1755429927251,12.38672565,193.61,193.6,0.03]
[1755429927965,8.05376315,193.61,193.6,0.03]
[1755429928366,15.76578528,193.61,193.6,0.03]
[1755429928569,9.97848791,193.61,193.6,0.03]
[1755429928768,15.75348463,193.61,193.6,0.03]
[1755429928973,46.28506715,193.61,193.6,0.03]
[1755429929386,44.21376315,193.61,193.6,0.03]
[1755429930192,44.19858975,193.61,193.6,0.03]
[1755429931287,48.52562245,193.61,193.6,0.03]
[1755429932056,44.19858975,193.61,193.6,0.03]
[1755429932672,46.26957275,193.61,193.6,0.03]
[1755429932875,42.41442882,193.61,193.6,0.03]
[1755429933072,46.25989037,193.61,193.6,0.03]
[1755429933381,44.18890737,193.61,193.6,0.03]
[1755429933584,46.25989037,193.61,193.6,0.03]
[1755429934175,53.95707384,193.61,193.6,0.03]
[1755429935979,53.95707384,193.61,193.59,0.03]
[1755429936284,8.02890737,193.6,193.59,0.03]
[1755429936470,26.0,193.58,193.54,0.03]
[1755429936780,73.79067502,193.58,193.54,0.03]
[1755429936987,74.51067502,193.58,193.54,0.03]
[1755429937366,76.58208702,193.58,193.54,0.03]
[1755429938086,74.51067502,193.58,193.54,0.03]
[1755429939163,70.18890737,193.58,193.54,0.03]
[1755429940395,74.51067502,193.58,193.54,0.03]
[1755429941192,72.26031937,193.58,193.54,0.03]
[1755429942292,72.2566782,193.58,193.54,0.03]
[1755429942597,72.25736653,193.58,193.54,0.03]
[1755429944797,36.09736653,193.58,193.54,0.03]
[1755429945183,70.18595453,193.58,193.54,0.03]
[1755429945395,69.46595453,193.58,193.54,0.75]
[1755429945980,70.13595453,193.58,193.54,0.75]
[1755429947071,69.46595453,193.58,193.54,0.75]
[1755429948004,69.46595453,193.58,193.54,0.03]
[1755429948187,69.46595453,193.58,193.55,0.75]
[1755429948776,70.13595453,193.58,193.55,0.03]
[1755429951010,66.29344582,193.58,193.55,0.03]
[1755429951180,70.14506055,193.58,193.55,0.03]
[1755429951580,7.31611925,193.57,193.55,0.03]
[1755429953106,11.51536626,193.57,193.55,0.03]
[1755429954080,7.31611925,193.57,193.55,0.03]
[1755429957816,7.32046928,193.57,193.55,0.03]
[1755429958016,7.99046928,193.57,193.55,0.03]
[1755429958441,15.69457399,193.57,193.55,0.03]
[1755429958646,17.76619999,193.57,193.55,0.03]
[1755429959439,11.99120327,193.57,193.55,0.03]
[1755429960013,10.06209528,193.57,193.55,0.03]
[1755429960211,11.99385037,193.57,193.55,0.03]
[1755429960654,11.99437807,193.57,193.55,0.03]
[1755429960874,26.0,193.55,193.54,0.03]
[1755429961178,71.41275207,193.55,193.54,0.03]
[1755429961348,72.08275207,193.55,193.48,0.72]
[1755429961539,26.0,193.5,193.48,0.72]
[1755429961744,69.48263152,193.5,193.46,0.72]
[1755429962471,70.15263152,193.5,193.46,0.72]
[1755429962674,70.15263152,193.5,193.44,0.72]
[1755429962855,72.08401475,193.5,193.44,0.72]
[1755429963069,72.08401475,193.5,193.42,0.92]
[1755429963809,72.08372273,193.5,193.43,0.75]
[1755429964084,72.08372273,193.5,193.44,0.72]
[1755429964442,41.04365313,193.5,193.43,0.03]
[1755429964644,69.48263152,193.5,193.47,0.75]
[1755429965274,69.48263152,193.5,193.47,0.03]
[1755429966266,69.48263152,193.5,193.49,0.75]
[1755429966860,69.48263152,193.5,193.49,0.03]
[1755429967450,70.15263152,193.5,193.49,0.03]
[1755429968262,75.94256192,193.5,193.49,0.03]
[1755429968462,77.87403689,193.5,193.49,0.03]
[1755429968847,77.87301011,193.5,193.49,0.03]
[1755429971066,41.04301011,193.5,193.49,0.03]
[1755429971264,71.43307971,193.5,193.49,0.03]
[1755429971554,69.50285949,193.5,193.47,0.75]
[1755429971774,4.34021105,193.48,193.47,0.75]
[1755429972056,47.84307054,193.48,193.47,0.75]
[1755429972585,47.84307054,193.48,193.47,0.03]
[1755429972780,47.84307054,193.48,193.47,0.75]
[1755429973691,47.84307054,193.48,193.47,0.03]
[1755429973862,49.91512554,193.48,193.47,0.03]
[1755429975890,47.84307054,193.48,193.47,0.03]
[1755429977270,26.0,193.46,193.45,0.73]
[1755429977469,65.64344582,193.46,193.45,0.01]
[1755429977672,69.50069195,193.46,193.45,0.01]
[1755429977974,69.50050632,193.46,193.45,0.01]
[1755429978182,69.50050632,193.46,193.45,0.73]
[1755429978671,69.50050632,193.46,193.45,0.01]
[1755429978872,69.50050632,193.46,193.45,0.73]
[1755429979492,69.50050632,193.46,193.45,0.01]
[1755429980684,70.17050632,193.46,193.45,0.01]
[1755429981910,72.24288432,193.46,193.45,0.01]
[1755429986501,68.38582382,193.46,193.45,0.01]
[1755429986701,72.24115131,193.46,193.45,0.01]
[1755429987099,76.58136236,193.46,193.45,0.01]
[1755429987294,72.24115131,193.46,193.45,0.01]
[1755429989612,72.24046559,193.46,193.45,0.01]
[1755429989912,36.06046559,193.46,193.43,0.03]
[1755429990117,4.33702689,193.44,193.43,0.03]
[1755429990308,47.85511448,193.44,193.43,0.03]
[1755429991315,49.92770748,193.44,193.43,0.03]
[1755429991932,50.59770748,193.44,193.43,0.03]
[1755429994519,49.90770748,193.44,193.43,0.03]
[1755429995706,49.90856708,193.44,193.43,0.03]
[1755429996300,50.57856708,193.44,193.43,0.03]
[1755429997411,46.24154019,193.44,193.43,0.03]
[1755429997808,45.57154019,193.44,193.43,0.03]
[1755429999201,46.24154019,193.44,193.43,0.03]
[1755429999520,45.57154019,193.44,193.43,0.03]
[1755430002328,45.57154019,193.44,193.42,0.2]
[1755430002626,7.31894719,193.43,193.42,0.2]
[1755430004411,9.39164719,193.43,193.42,0.2]
[1755430004621,5.53614582,193.43,193.42,0.2]
[1755430004819,10.10450687,193.43,193.42,0.2]
[1755430005816,17.82859848,193.43,193.42,0.2]
[1755430006212,53.30859848,193.43,193.42,0.2]
[1755430008038,53.30863396,193.43,193.42,0.2]
[1755430010241,54.00863396,193.43,193.42,0.2]
[1755430010823,54.00818857,193.43,193.42,0.2]
[1755430012345,54.00818857,193.43,193.41,0.03]
[1755430012550,7.33139696,193.42,193.41,0.03]
[1755430013052,9.40420396,193.42,193.41,0.03]
[1755430013759,5.53625282,193.42,193.41,0.03]
[1755430014055,9.40456701,193.42,193.41,0.03]
[1755430016750,10.10456701,193.42,193.41,0.03]
[1755430020660,26.0,193.39,193.37,0.03]
[1755430020857,69.51176001,193.38,193.37,0.03]
[1755430022266,69.51432026,193.38,193.37,0.03]
[1755430022763,69.51432026,193.38,193.37,0.73]
[1755430023354,33.33432026,193.38,193.37,0.73]
[1755430023542,69.51432026,193.38,193.37,0.73]
[1755430023946,33.33432026,193.38,193.37,0.73]
[1755430024166,69.51432026,193.38,193.37,0.73]
[1755430024368,73.86827527,193.38,193.37,0.03]
[1755430024973,37.68827527,193.38,193.37,0.03]
[1755430025148,73.86827527,193.38,193.37,0.03]
[1755430025344,73.87010789,193.38,193.37,0.03]
[1755430026881,37.69010789,193.38,193.37,0.03]
[1755430027072,73.87010789,193.38,193.37,0.73]
[1755430028974,73.8994984,193.38,193.37,0.73]
[1755430031389,73.90322893,193.38,193.37,0.73]
[1755430032189,73.90322893,193.38,193.37,0.03]
[1755430033063,69.54390041,193.38,193.37,0.03]
[1755430033455,73.90322893,193.38,193.37,0.03]
[1755430037478,37.72322893,193.38,193.37,0.03]
[1755430037667,69.54390041,193.38,193.37,0.03]
[1755430039984,73.90322893,193.38,193.37,0.03]
[1755430040184,70.02679134,193.38,193.37,0.03]
[1755430040384,74.57481422,193.38,193.37,0.03]
[1755430040898,73.90481422,193.38,193.37,0.03]
[1755430041075,74.57481422,193.38,193.37,0.03]
[1755430041759,70.2154857,193.38,193.35,0.03]
[1755430041974,4.36306308,193.36,193.35,0.03]
[1755430042188,47.90854878,193.36,193.35,0.03]
[1755430042487,48.57854878,193.36,193.35,0.03]
[1755430044490,44.2154857,193.36,193.35,0.03]
[1755430045573,26.0,193.34,193.33,0.03]
[1755430045765,73.90792662,193.34,193.33,0.03]
[1755430045966,70.2154857,193.34,193.33,0.03]
[1755430046266,74.57704963,193.34,193.33,0.03]
[1755430047166,76.0054161,193.34,193.31,0.03]
[1755430047486,31.81408506,193.32,193.31,0.03]
[1755430047681,75.35957851,193.32,193.31,0.03]
[1755430047868,70.2154857,193.32,193.31,0.03]
[1755430048267,76.02504957,193.32,193.31,0.03]
[1755430049277,76.01961942,193.32,193.31,0.03]
[1755430049875,39.16961942,193.32,193.31,0.03]
[1755430050074,47.89405943,193.32,193.31,0.69]
[1755430050281,43.54005555,193.32,193.31,0.69]
[1755430050582,43.54005555,193.32,193.31,10.69]
[1755430050775,42.74005555,193.32,193.31,10.69]
[1755430050981,6.56005555,193.32,193.31,10.69]
[1755430052566,6.5556708,193.32,193.31,10.69]
[1755430055580,6.6156708,193.32,193.31,10.69]
[1755430055776,3.92820798,193.32,193.31,10.69]
[1755430058482,0.06,193.32,193.31,10.69]
[1755430058688,3.92791074,193.32,193.31,10.69]
[1755430059011,3.92808023,193.32,193.31,10.69]
[1755430059809,3.92808023,193.32,193.31,91.39]
[1755430059987,0.06,193.32,193.31,91.39]
[1755430060786,3.92767085,193.32,193.31,91.39]
[1755430062605,3.92767085,193.32,193.31,90.73]
[1755430063192,3.92767085,193.32,193.31,10.03]
[1755430064198,7.40913575,193.32,193.31,10.03]
[1755430067500,7.40972406,193.32,193.31,10.03]
[1755430069508,8.06972406,193.32,193.31,10.03]
[1755430070404,7.40972406,193.32,193.31,10.03]
[1755430072892,8.06972406,193.32,193.31,10.03]
[1755430075185,7.40972406,193.32,193.31,10.03]
[1755430075586,8.06972406,193.32,193.31,10.03]
[1755430076614,4.2014649,193.32,193.31,10.03]
[1755430076905,8.07014917,193.32,193.31,10.03]
[1755430079105,7.41014917,193.32,193.31,10.03]
[1755430080705,3.92868427,193.32,193.31,90.73]
[1755430080931,0.06,193.32,193.31,104.7753061]
[1755430081119,0.06,193.32,193.31,106.271223]
[1755430081430,0.06,193.32,193.31,90.73]
[1755430082721,0.06,193.32,193.31,10.03]
[1755430083693,3.92910207,193.32,193.31,10.03]
[1755430085017,0.06,193.32,193.31,10.03]
[1755430087425,0.06,193.32,193.31,90.73]
[1755430091522,0.06,193.32,193.31,92.802485]
[1755430093126,0.72,193.32,193.31,92.802485]
[1755430093326,4.59120948,193.32,193.31,92.802485]
[1755430093625,8.07521704,193.32,193.31,12.102485]
[1755430094006,8.07521704,193.32,193.31,10.03]
[1755430094007,4.20400756,193.32,193.31,10.03]
[1755430094226,8.07536183,193.32,193.31,10.03]
[1755430094800,8.07778472,193.32,193.31,10.03]
[1755430099619,7.41778472,193.32,193.31,10.03]
[1755430100017,7.41778472,193.32,193.31,18.107785]
[1755430102431,7.41778472,193.32,193.31,10.03]
[1755430102631,7.41778472,193.32,193.31,17.447785]
[1755430103237,7.41847937,193.32,193.31,10.03]
[1755430103736,7.41843378,193.32,193.31,10.03]
[1755430105039,7.41843378,193.32,193.31,90.73]
[1755430105336,8.12843378,193.32,193.31,90.73]
[1755430105705,7.41843378,193.32,193.31,90.73]
[1755430106107,7.41843378,193.32,193.31,98.858433]
[1755430107040,7.41843378,193.32,193.31,90.73]
[1755430107418,8.12843378,193.32,193.31,98.148434]
[1755430107734,8.12843378,193.32,193.31,90.73]
[1755430108450,7.41843378,193.32,193.31,90.73]
[1755430109341,7.41875228,193.32,193.31,98.148434]
[1755430112137,8.12875228,193.32,193.31,98.148434]
[1755430112437,8.12872776,193.32,193.31,98.148434]
[1755430112642,7.41872776,193.32,193.31,98.148434]
[1755430112854,7.41872492,193.32,193.31,98.148434]
[1755430115239,7.41872492,193.32,193.31,90.73]
[1755430115441,7.41892894,193.32,193.31,90.73]
[1755430120751,8.12892894,193.32,193.31,90.73]
[1755430121641,8.13091612,193.32,193.31,90.73]
[1755430124744,7.42091612,193.32,193.31,90.73]
[1755430126957,8.07091612,193.32,193.31,90.73]
[1755430130557,4.19400756,193.32,193.31,90.73]
[1755430130735,8.07361938,193.32,193.31,90.73]
[1755430139664,4.19400756,193.32,193.31,90.73]
[1755430139865,8.07431388,193.32,193.31,90.73]
[1755430140364,7.42431388,193.32,193.31,90.73]
[1755430141437,8.07431388,193.32,193.31,90.73]
[1755430144384,8.07521625,193.32,193.31,90.73]
[1755430147763,4.19400756,193.32,193.31,90.73]
[1755430148062,8.07537973,193.32,193.31,90.73]
[1755430150661,8.08452318,193.32,193.31,90.73]
[1755430152289,7.43452318,193.32,193.31,90.73]
[1755430153374,8.08452318,193.32,193.31,90.73]
[1755430155291,8.08394686,193.32,193.31,90.73]
[1755430156990,8.08394686,193.32,193.31,10.03]
[1755430157192,8.08391712,193.32,193.31,10.03]
[1755430157790,8.08354853,193.32,193.31,10.03]
[1755430166503,8.08198986,193.32,193.31,10.03]
[1755430175307,4.20315101,193.32,193.31,10.03]
[1755430175605,8.08111421,193.32,193.31,10.03]
[1755430175909,8.08108442,193.32,193.31,10.03]
[1755430178512,4.20315101,193.32,193.31,10.03]
[1755430178805,8.08106506,193.32,193.31,10.03]
[1755430181525,8.08115816,193.32,193.31,10.03]
[1755430184522,4.20315101,193.32,193.31,10.03]
[1755430184821,8.08127671,193.32,193.31,10.03]
[1755430185016,4.20315101,193.32,193.31,10.03]
[1755430185317,8.08127671,193.32,193.31,10.03]
[1755430187405,6.71643681,193.32,193.31,10.03]
[1755430188325,6.77643681,193.32,193.31,10.03]
[1755430191631,42.91643681,193.32,193.31,10.03]
[1755430193605,42.91745353,193.32,193.31,10.03]
[1755430194009,39.03831111,193.32,193.31,10.03]
[1755430194222,42.91745353,193.32,193.31,10.03]
[1755430199523,39.03831111,193.32,193.31,10.03]
[1755430199822,42.91674209,193.32,193.31,10.03]
[1755430200735,42.89674209,193.32,193.31,10.03]
[1755430201113,6.77674209,193.32,193.31,10.03]
[1755430201329,42.89674209,193.32,193.31,10.03]
[1755430201633,39.01831111,193.32,193.31,10.03]
[1755430201933,42.89695977,193.32,193.31,10.03]
[1755430202413,6.1268359,193.32,193.31,10.03]
[1755430202626,42.2468359,193.32,193.31,10.03]
[1755430202824,6.1268359,193.32,193.31,10.03]
[1755430203207,3.93852479,193.32,193.31,90.73]
[1755430204422,3.93852479,193.32,193.31,94.668525]
[1755430204621,3.93852479,193.32,193.31,90.73]
[1755430204850,3.9359612,193.32,193.31,90.73]
[1755430205851,7.42374891,193.32,193.31,90.73]
[1755430208321,3.9359612,193.32,193.31,90.73]
[1755430208644,3.9359612,193.32,193.31,10.03]
[1755430210844,3.93411059,193.32,193.31,10.03]
[1755430214547,3.93411059,193.32,193.31,90.73]
[1755430216451,0.06,193.32,193.31,90.73]
[1755430232674,0.06,193.32,193.31,91.24730381]
[1755430233165,0.06,193.32,193.31,93.31946681]
[1755430233351,0.06,193.34,193.33,10.0]
[1755430233667,0.06,193.34,193.33,46.61725029]
[1755430234068,0.06,193.34,193.33,48.68919829]
[1755430234239,0.06,193.34,193.33,46.61725029]
[1755430234670,0.06,193.34,193.33,48.68919929]
[1755430235171,0.06,193.34,193.33,52.93683989]
[1755430235649,0.06,193.34,193.33,46.61725029]
[1755430236652,0.06,193.34,193.33,50.86281604]
[1755430238150,0.06,193.34,193.33,131.50281604]
[1755430238370,0.06,193.34,193.33,130.98556575]
[1755430238549,0.06,193.34,193.33,133.05751475]
[1755430240878,0.06,193.34,193.33,128.811949]
[1755430242773,0.06,193.34,193.33,126.74]
[1755430245852,0.72,193.34,193.33,126.74]
[1755430246047,0.06,193.34,193.33,126.74]
[1755430246243,0.06,193.34,193.33,90.64]
[1755430246578,0.06,193.34,193.33,127.23725029]
[1755430246784,0.06,193.34,193.33,126.72]
[1755430247556,0.06,193.34,193.33,90.64]
[1755430247756,0.06,193.34,193.33,127.23725029]
[1755430248072,0.06,193.34,193.33,126.72]
[1755430248259,0.06,193.36,193.35,80.58]
[1755430248457,0.06,193.36,193.35,260.87719679]
[1755430248669,0.06,193.36,193.35,260.36]
[1755430248879,0.06,193.36,193.35,224.28]
[1755430249176,0.06,193.36,193.35,262.431627]
[1755430255893,0.72,193.4,193.38,106.46]
[1755430256089,0.06,193.4,193.39,36.59708981]
[1755430256276,0.06,193.4,193.39,46.59708981]
[1755430256688,0.72,193.4,193.39,46.59708981]
[1755430261999,0.72,193.4,193.39,127.05708981]
[1755430262196,0.72,193.4,193.39,126.54]
[1755430266195,0.72,193.4,193.39,90.46]
[1755430270887,0.72,193.4,193.39,90.97708981]
[1755430271074,0.06,193.4,193.39,90.97708981]
[1755430271279,0.06,193.4,193.39,97.94917134]
[1755430272180,0.06,193.4,193.39,100.02036834]
[1755430273488,0.06,193.4,193.39,93.04828681]
[1755430277621,0.06,193.4,193.39,106.26577453]
[1755430277786,0.06,193.4,193.39,105.74868472]
[1755430278297,0.06,193.42,193.4,80.4]
[1755430278499,0.06,193.42,193.41,36.57703634]
[1755430279305,0.06,193.42,193.41,46.57703634]
[1755430279511,0.06,193.42,193.41,48.64780434]
[1755430282501,0.06,193.42,193.41,262.74780434]
[1755430282798,0.06,193.42,193.41,262.230768]
[1755430285516,0.77,193.42,193.41,262.230768]
[1755430287006,0.06,193.42,193.41,262.230768]
[1755430288419,0.77,193.43,193.42,80.34]
[1755430288592,0.77,193.43,193.42,80.85700961]
[1755430288791,0.77,193.43,193.42,90.85700961]
[1755430289698,0.77,193.43,193.42,92.92788561]
[1755430301839,0.06,193.43,193.42,92.92788561]
[1755430304938,0.73,193.43,193.42,92.92788561]
[1755430306241,0.06,193.44,193.43,90.28]
[1755430306414,0.06,193.44,193.43,126.32]
[1755430307419,0.06,193.44,193.43,128.390554]
[1755430312246,0.06,193.46,193.45,79.49]
[1755430312445,0.06,193.46,193.45,116.04692943]
[1755430312646,0.06,193.46,193.45,125.53]
[1755430313021,0.06,193.46,193.45,127.600554]
[1755430314146,0.73,193.46,193.45,127.600554]
[1755430317051,0.06,193.46,193.45,127.600554]
[1755430318848,0.73,193.46,193.45,127.600554]
[1755430319318,0.06,193.46,193.45,127.600554]
[1755430320448,0.73,193.46,193.45,127.600554]
[1755430321056,0.06,193.46,193.45,127.600554]
[1755430322138,0.73,193.46,193.45,127.600554]
[1755430322445,0.06,193.46,193.45,127.600554]
[1755430329051,0.06,193.46,193.45,128.260554]
[1755430329446,0.06,193.48,193.47,115.37]
[1755430329657,0.06,193.48,193.47,285.09]
[1755430330042,0.73,193.48,193.47,287.160233]
[1755430331042,0.73,193.48,193.47,251.140233]
[1755430331243,0.73,193.48,193.47,285.09]
[1755430332776,0.73,193.48,193.47,151.39]
[1755430345694,0.06,193.48,193.47,151.39]
[1755430346095,0.77,193.48,193.47,151.39]
[1755430349789,0.06,193.48,193.47,151.39]
[1755430351391,0.06,193.48,193.47,151.37]
[1755430352106,0.77,193.48,193.47,151.37]
[1755430356686,0.06,193.48,193.47,151.37]
[1755430358280,0.77,193.48,193.47,151.37]
[1755430359203,4.64651674,193.48,193.47,10.0]
[1755430359386,8.13579172,193.48,193.47,10.0]
[1755430359700,8.13579172,193.48,193.47,46.0]